bitfinex/quotes_ETHUSD_20250110
["timestamp","ask_amount","ask_price","bid_price","bid_amount"]
[1736511729009,5.407823,3305.2,3305.1,0.213]
[1736511730408,5.407823,3305.2,3305.1,0.28152541]
[1736511731317,5.37,3305.2,3305.1,0.28152541]
[1736511731603,5.40782273,3305.2,3305.1,0.28152541]
[1736511732622,9.48431192,3305.2,3305.1,0.06852541]
[1736511732790,15.50984192,3305.2,3305.1,0.06852541]
[1736511732990,6.02562,3305.1,3305.0,0.213]
[1736511733200,9.16011,3305.0,3304.9,0.213]
[1736511733399,11.95003965,3305.0,3304.9,0.213]
[1736511733587,13.50167484,3305.0,3304.9,0.213]
[1736511734918,10.47596484,3305.0,3304.2,0.5575]
[1736511735098,3.06368866,3304.9,3304.4,0.55]
[1736511735295,2.78992965,3304.6,3304.4,0.55]
[1736511735494,2.78992965,3304.6,3304.5,0.213]
[1736511736120,3.02635,3304.4,3303.7,0.61647923]
[1736511736315,5.81653965,3304.1,3303.8,0.213]
[1736511736538,5.81668965,3303.9,3303.8,0.06701204]
[1736511736832,7.01276861,3303.9,3303.8,0.28001204]
[1736511737033,7.01276861,3303.9,3303.8,0.213]
[1736511737534,6.1441,3304.1,3303.8,0.763]
[1736511737535,9.17066,3304.1,3303.8,0.763]
[1736511737830,5.37,3304.1,3303.8,0.763]
[1736511738221,5.37,3304.1,3303.9,0.06724457]
[1736511739000,5.40783701,3304.1,3303.9,0.06724457]
[1736511739331,8.43444701,3304.1,3303.9,0.06724457]
[1736511739532,9.59608767,3304.1,3304.0,0.213]
[1736511739752,15.38601732,3304.1,3304.0,0.213]
[1736511740043,16.20721732,3304.1,3304.0,0.213]
[1736511740924,3.0,3304.0,3303.3,0.1687953]
[1736511741117,5.37,3303.5,3303.4,0.213]
[1736511741440,5.40784395,3303.5,3303.4,0.28052136]
[1736511741951,9.63363331,3303.5,3303.4,0.28052136]
[1736511742243,9.59578936,3303.5,3303.4,0.06752136]
[1736511742396,9.59578936,3303.5,3303.4,0.28052136]
[1736511742843,9.59578936,3303.5,3303.4,0.213]
[1736511743458,11.39718,3303.4,3303.3,0.1687953]
[1736511743751,13.0119809,3303.4,3303.3,0.1687953]
[1736511744320,13.8212809,3303.4,3303.3,0.1687953]
[1736511747055,16.61121055,3303.4,3303.3,0.1687953]
[1736511747617,3.02791,3302.6,3302.5,0.213]
[1736511747816,3.02791,3302.6,3301.7,2.7269168]
[1736511747817,3.02839,3302.1,3302.0,0.213]
[1736511748047,6.12115865,3302.1,3302.0,0.213]
[1736511748570,8.15992965,3302.4,3302.0,0.213]
[1736511748714,5.37,3302.4,3302.0,0.213]
[1736511749317,3.0282,3302.3,3302.0,0.213]
[1736511749516,3.06605945,3302.3,3302.0,0.213]
[1736511749815,1.12259891,3302.2,3302.0,0.213]
[1736511752648,5.37,3302.0,3301.6,0.55]
[1736511753166,0.03786077,3301.9,3301.5,2.39582362]
[1736511753537,0.03786077,3301.9,3301.6,0.27390159]
[1736511753762,5.37,3302.0,3301.6,0.27390159]
[1736511753967,5.37,3302.0,3301.7,0.1614]
[1736511754168,5.37,3302.0,3301.8,0.0075]
[1736511754467,5.37,3302.0,3301.8,3.09691223]
[1736511754634,5.37,3302.0,3301.8,0.0075]
[1736511754838,5.37,3302.0,3301.9,0.06076755]
[1736511755247,5.37,3302.0,3301.7,0.1614]
[1736511755425,5.37,3302.0,3301.9,0.06076755]
[1736511755621,5.37,3302.0,3301.7,0.1614]
[1736511756063,5.37,3302.0,3301.8,0.06081223]
[1736511756262,5.37,3302.0,3301.6,0.213]
[1736511756777,5.37,3302.0,3301.7,0.06085691]
[1736511759242,5.37,3302.0,3301.8,0.55]
[1736511759463,0.03785869,3301.9,3301.7,0.06085691]
[1736511759674,0.03785869,3301.9,3301.6,0.213]
[1736511760787,2.82778937,3302.2,3301.7,0.55]
[1736511760943,2.82778937,3302.2,3301.7,0.06146117]
[1736511761278,5.85607937,3302.2,3301.7,0.06146117]
[1736511761449,5.81821965,3302.2,3301.7,0.06146117]
[1736511761832,2.78992965,3302.2,3301.7,0.06146117]
[1736511762032,3.02847,3302.0,3301.7,0.06146117]
[1736511762259,0.03786181,3301.9,3301.7,0.06146117]
[1736511763284,0.03786181,3301.9,3301.8,0.221]
[1736511764383,0.03786165,3302.0,3301.8,0.2824165]
[1736511764538,3.31753497,3302.1,3301.8,0.2824165]
[1736511764734,0.03786146,3302.0,3301.8,0.2824165]
[1736511765480,0.7742,3301.9,3301.8,0.0614165]
[1736511765688,0.7742,3301.9,3301.8,0.2824165]
[1736511765868,6.59267965,3301.9,3301.8,0.221]
[1736511766237,9.59267965,3301.9,3301.8,0.221]
[1736511766686,3.02866,3301.8,3301.2,0.1614]
[1736511766887,0.03786518,3301.7,3301.3,0.221]
[1736511767087,0.03786518,3301.7,3301.3,0.28263991]
[1736511767687,3.7742,3301.9,3301.3,0.28263991]
[1736511768090,6.80276,3301.9,3301.3,0.28263991]
[1736511768389,0.03786505,3301.8,3301.3,0.28263991]
[1736511769094,0.03786507,3301.8,3301.3,0.28263991]
[1736511769696,0.03786503,3301.8,3301.3,0.28263991]
[1736511769988,0.03786504,3301.8,3301.3,0.28263991]
[1736511770289,0.03786497,3301.8,3301.3,0.28263991]
[1736511770583,9.59268965,3301.9,3301.3,0.28263991]
[1736511770790,10.67544927,3301.9,3301.3,0.28263991]
[1736511771107,3.02866,3301.8,3301.3,0.28263991]
[1736511771259,3.06652493,3301.8,3301.3,0.28263991]
[1736511772193,0.03786493,3301.8,3301.3,0.28263991]
[1736511772356,3.02901,3301.4,3301.3,0.06163991]
[1736511772558,0.58189397,3301.4,3301.1,0.221]
[1736511772759,5.81905965,3301.3,3301.1,0.221]
[1736511772957,3.0292,3301.2,3301.1,0.221]
[1736511773162,2.78992965,3301.3,3301.1,0.221]
[1736511773368,3.85097,3301.4,3301.1,0.221]
[1736511773843,2.78992965,3301.6,3301.1,0.221]
[1736511774088,0.0378698,3301.5,3301.1,0.221]
[1736511774389,3.0378698,3301.5,3301.1,0.221]
[1736511774563,7.03464975,3301.5,3301.1,0.221]
[1736511774749,6.99677995,3301.5,3301.1,0.221]
[1736511774950,0.03786731,3301.4,3301.1,0.221]
[1736511775156,3.06687731,3301.4,3301.1,0.221]
[1736511775594,3.02911,3301.3,3301.1,0.221]
[1736511775801,6.99679995,3301.5,3301.1,0.221]
[1736511776091,3.02914,3301.3,3301.1,0.221]
[1736511776300,0.03786987,3301.2,3301.1,0.221]
[1736511778279,0.03786987,3301.2,3301.1,0.28178501]
[1736511778882,0.03786987,3301.2,3301.1,0.06078501]
[1736511779048,0.03786987,3301.2,3301.1,0.28178501]
[1736511779251,3.06706987,3301.2,3301.1,0.221]
[1736511779499,3.43377428,3301.2,3301.1,0.28180291]
[1736511779884,3.43377428,3301.2,3301.1,0.221]
[1736511780078,3.47164555,3301.2,3301.1,0.221]
[1736511780280,6.47164555,3301.2,3301.1,0.221]
[1736511780493,6.43377428,3301.2,3301.1,0.221]
[1736511780712,3.43377428,3301.2,3301.1,0.221]
[1736511781153,0.40457428,3301.2,3301.1,0.28180291]
[1736511781353,3.02905,3301.4,3301.1,0.221]
[1736511781549,5.85692981,3301.3,3301.2,0.06078505]
[1736511781799,5.81905965,3301.3,3301.1,0.221]
[1736511781956,0.03787038,3301.2,3301.1,0.221]
[1736511783100,0.03787038,3301.2,3301.1,0.28181185]
[1736511783458,2.78992965,3301.3,3301.1,0.28181185]
[1736511783660,2.78992965,3301.3,3301.1,0.44321185]
[1736511783991,5.85690855,3301.3,3301.1,0.28181185]
[1736511784168,6.48407051,3301.3,3301.1,0.28181185]
[1736511784374,0.66503086,3301.3,3301.1,0.221]
[1736511784573,3.02901,3301.4,3301.1,0.221]
[1736511784782,3.06697898,3301.3,3301.2,0.06076716]
[1736511784989,3.06697898,3301.3,3300.4,0.7264]
[1736511784990,3.89547898,3301.3,3300.4,0.7264]
[1736511785221,3.65629863,3301.3,3300.5,0.221]
[1736511785521,3.0294,3301.0,3300.5,0.28216954]
[1736511785687,0.03787313,3300.9,3300.5,0.28216954]
[1736511786322,3.06737313,3300.9,3300.5,0.28216954]
[1736511786532,2.78992965,3300.7,3300.5,0.06116954]
[1736511786669,6.87810728,3300.6,3300.5,0.06116954]
[1736511786875,5.48839282,3300.6,3300.0,9.1711953]
[1736511787074,9.63073965,3300.1,3300.0,9.1711953]
[1736511787369,10.06273581,3300.1,3300.0,1.55216525]
[1736511787620,0.828,3299.2,3298.7,0.31586279]
[1736511787920,2.78992965,3298.8,3298.7,0.31586279]
[1736511788073,2.78992965,3298.8,3298.7,0.53686279]
[1736511788272,0.03789768,3299.1,3298.7,0.53686279]
[1736511788273,2.78992965,3299.1,3298.7,0.53686279]
[1736511788504,0.2575,3300.3,3298.7,0.53686279]
[1736511788505,3.03039,3299.9,3298.9,0.756]
[1736511788710,3.58742965,3300.2,3299.0,0.221]
[1736511788892,3.03028,3300.1,3299.1,0.756]
[1736511789201,2.78992965,3300.2,3299.3,0.771]
[1736511789415,2.52152651,3300.6,3299.9,0.55]
[1736511789902,2.52152651,3300.6,3300.0,0.0075]
[1736511789903,3.0,3300.6,3300.0,0.0075]
[1736511790070,2.78992965,3300.7,3300.0,0.0075]
[1736511790417,2.78992965,3301.0,3300.3,0.5575]
[1736511790579,0.27899296,3300.9,3300.4,1.0028]
[1736511790974,3.27899296,3300.9,3300.4,1.0028]
[1736511791214,0.03787432,3300.8,3300.4,1.0028]
[1736511792913,3.27899296,3300.9,3300.4,1.0028]
[1736511793222,3.27899296,3300.9,3300.5,0.55]
[1736511793223,0.03787435,3300.9,3300.5,0.55]
[1736511793429,3.02913,3301.3,3300.5,0.6092662]
[1736511793576,3.02869,3301.8,3300.5,0.6092662]
[1736511793577,0.03787185,3301.2,3300.6,0.015]
[1736511793776,3.02869,3301.8,3300.8,3.58703]
[1736511794010,2.78992965,3301.6,3300.9,0.05908737]
[1736511794215,0.58566077,3301.5,3301.0,0.55]
[1736511794398,2.78992965,3301.6,3301.0,0.55]
[1736511794612,3.02867,3301.8,3301.0,0.55]
[1736511794821,3.59852965,3301.9,3301.1,0.86679798]
[1736511795126,0.03786783,3301.7,3301.1,0.86679798]
[1736511795927,3.02896,3301.5,3301.1,0.05899798]
[1736511796194,0.61975687,3301.4,3301.1,0.05899798]
[1736511797061,0.61975687,3301.4,3300.9,0.55]
[1736511797215,0.61975687,3301.4,3301.2,0.05895328]
[1736511797399,6.64876687,3301.4,3300.3,3.03748]
[1736511797603,6.64876687,3301.4,3300.4,1.05611091]
[1736511797604,6.57980965,3301.3,3300.4,1.05611091]
[1736511797828,3.02937,3301.1,3300.5,0.225]
[1736511798035,0.03787466,3301.0,3300.5,0.225]
[1736511798235,0.03787466,3301.0,3300.6,0.05738161]
[1736511798503,3.02893,3301.5,3300.7,0.775]
[1736511798504,3.0,3301.5,3300.7,0.775]
[1736511798749,3.65534296,3301.5,3300.8,0.0075]
[1736511798917,5.81850965,3301.9,3300.9,1.3117]
[1736511799116,2.78992965,3301.9,3300.9,1.3117]
[1736511799436,2.78992965,3301.3,3300.7,0.225]
[1736511799606,0.03787226,3301.2,3300.7,0.225]
[1736511799804,3.02921,3301.2,3300.8,0.0572922]
[1736511800015,0.65826396,3301.1,3300.7,0.225]
[1736511800203,0.65826396,3301.1,3300.8,0.0572922]
[1736511800408,0.65826396,3301.1,3300.7,0.225]
[1736511800639,0.2488,3301.2,3300.8,0.6072922]
[1736511801119,0.2488,3301.2,3300.9,0.0075]
[1736511801321,0.2488,3301.2,3301.0,0.55]
[1736511801539,0.2488,3301.2,3301.0,0.6072028]
[1736511802053,0.2488,3301.2,3301.1,1.3329]
[1736511802549,0.2488,3301.2,3301.1,1.3900581]
[1736511802758,0.2488,3301.2,3301.1,1.3975581]
[1736511802917,0.2488,3301.2,3301.1,4.4343481]
[1736511804631,0.2488,3301.2,3301.1,4.4418481]
[1736511807349,0.2488,3301.2,3301.1,7.23177775]
[1736511808055,1.14e-06,3301.2,3301.1,10.23177775]
[1736511817045,1.14e-06,3301.2,3301.1,10.48177775]
[1736511817765,1.14e-06,3301.2,3301.1,15.73177775]
[1736511817929,0.7706,3303.4,3302.8,0.0075]
[1736511818125,0.7706,3303.4,3303.0,0.55]
[1736511818470,0.7706,3303.4,3303.1,0.0554015]
[1736511818668,0.7706,3303.4,3303.2,0.5575]
[1736511818902,0.7706,3303.4,3303.2,0.0075]
[1736511819080,0.7706,3303.4,3303.3,0.60480259]
[1736511820086,3.79778,3303.4,3303.3,0.27980259]
[1736511820390,4.21540336,3303.4,3303.3,0.225]
[1736511820700,1.18822336,3303.4,3303.3,0.225]
[1736511820987,1.150378,3303.4,3303.3,0.225]
[1736511821189,0.7706,3303.4,3303.3,0.225]
[1736511821489,0.7706,3303.4,3303.3,0.27980259]
[1736511821795,0.7706,3303.4,3303.3,0.225]
[1736511822299,0.7706,3303.4,3303.3,0.27980259]
[1736511823884,0.8191,3303.7,3303.3,0.28730259]
[1736511824088,0.03783976,3303.6,3303.3,0.28730259]
[1736511824586,0.8191,3303.7,3303.4,0.5575]
[1736511824946,0.8191,3303.7,3303.6,0.5575]
[1736511825383,0.8191,3303.7,3303.6,0.61216869]
[1736511825586,0.8191,3303.7,3303.6,0.83816869]
[1736511828973,0.7779,3304.0,3303.6,0.83816869]
[1736511829173,0.03783677,3303.9,3303.6,0.83816869]
[1736511829602,0.7779,3304.0,3303.6,0.83816869]
[1736511829990,0.03783677,3303.9,3303.6,0.83816869]
[1736511832931,0.7779,3304.0,3303.6,0.83816869]
[1736511833325,0.03783676,3303.9,3303.6,0.83816869]
[1736511833923,0.7779,3304.0,3303.6,0.83816869]
[1736511834238,0.03783676,3303.9,3303.6,0.83816869]
[1736511834926,1.158335,3304.0,3303.6,0.83816869]
[1736511835289,0.03783676,3303.9,3303.6,0.83816869]
[1736511837537,0.03783676,3303.9,3303.6,0.05466869]
[1736511837741,0.03783676,3303.9,3302.3,2.78992965]
[1736511837742,0.7785,3303.7,3302.5,0.8136]
[1736511837940,0.7785,3303.5,3302.6,0.226]
[1736511838091,0.03784558,3303.4,3302.6,0.27998467]
[1736511838738,3.06504558,3303.4,3302.6,0.27998467]
[1736511840138,3.06504558,3303.4,3302.7,0.5575]
[1736511840435,0.7706,3303.3,3302.7,0.83758743]
[1736511840641,0.42141013,3303.2,3302.7,0.83758743]
[1736511841193,5.79141013,3303.2,3302.8,0.226]
[1736511841396,3.02764,3302.9,3302.7,0.05408743]
[1736511841652,3.02791,3302.6,3302.1,4.244]
[1736511841825,0.03785372,3302.5,3302.2,0.226]
[1736511842010,0.34443009,3302.5,3302.2,0.226]
[1736511842423,9.21707,3302.8,3302.2,0.226]
[1736511842849,0.03785369,3302.7,3302.2,0.226]
[1736511843445,3.84364,3302.5,3302.1,4.244]
[1736511843611,0.03785577,3302.4,3302.2,0.226]
[1736511844215,0.03785577,3302.4,3302.1,4.244]
[1736511844418,3.85375577,3302.4,3302.3,0.226]
[1736511844744,2.02702431,3302.4,3301.4,1.38367791]
[1736511845071,2.02702431,3302.4,3301.5,3.25492]
[1736511845421,2.02702431,3302.4,3301.6,0.565]
[1736511845631,5.05517431,3302.4,3301.8,0.5575]
[1736511845816,5.05517431,3302.4,3301.8,0.0075]
[1736511846158,3.8127004,3302.3,3301.9,0.226]
[1736511846359,0.83135978,3302.2,3302.0,0.226]
[1736511846563,6.20135978,3302.2,3302.1,0.226]
[1736511846770,9.19178,3302.2,3302.1,0.226]
[1736511847124,5.37,3301.9,3301.1,0.8165]
[1736511847338,0.7935,3301.7,3301.2,0.226]
[1736511847540,0.03786412,3301.6,3301.3,0.226]
[1736511847755,0.03786412,3301.6,3301.4,0.226]
[1736511847958,0.03786412,3301.6,3301.5,0.226]
[1736511848117,0.42387553,3301.6,3301.5,0.226]
[1736511848323,5.85662377,3301.6,3301.5,0.226]
[1736511848568,5.81875965,3301.6,3301.5,0.226]
[1736511848724,5.81875965,3301.6,3300.6,3.0372]
[1736511848925,3.06681598,3301.5,3300.7,0.226]
[1736511849372,3.06681598,3301.5,3301.0,0.55]
[1736511849669,3.73184054,3301.5,3301.1,0.226]
[1736511850170,0.66502456,3301.5,3301.1,0.226]
[1736511850355,0.7898,3301.4,3300.8,0.55]
[1736511850534,0.03786643,3301.3,3301.2,0.226]
[1736511850926,3.02923,3301.2,3300.3,0.0075]
[1736511851165,1.16057429,3301.1,3300.4,0.226]
[1736511851988,1.16057429,3301.1,3300.6,1.15498899]
[1736511852574,1.12270261,3301.1,3300.6,1.15498899]
[1736511852779,0.7856,3301.0,3300.7,0.226]
[1736511852937,0.03787158,3300.9,3300.7,0.226]
[1736511853451,0.03787158,3300.9,3300.8,0.05542363]
[1736511853868,0.7856,3301.0,3300.7,0.226]
[1736511854232,0.7856,3301.0,3300.8,0.05542363]
[1736511854638,6.1752,3301.3,3300.8,0.0075]
[1736511854881,6.1752,3301.3,3301.0,0.55]
[1736511855076,7.095616,3301.3,3301.0,0.55]
[1736511855288,0.03786781,3301.2,3301.0,0.55]
[1736511855669,0.03786781,3301.2,3301.1,0.05528953]
[1736511856986,7.095616,3301.3,3301.1,0.05528953]
[1736511857287,0.03786765,3301.2,3301.1,0.05528953]
[1736511857474,6.1752,3301.3,3301.1,0.05528953]
[1736511857645,0.03786776,3301.2,3301.1,0.05528953]
[1736511857844,6.1752,3301.3,3301.1,0.05528953]
[1736511858365,0.03786778,3301.2,3301.1,0.05528953]
[1736511859385,6.1752,3301.3,3301.1,0.05528953]
[1736511859594,6.1752,3301.3,3301.2,0.226]
[1736511859886,6.61382129,3301.3,3301.1,0.05528953]
[1736511860093,6.61382129,3301.3,3301.2,0.27937885]
[1736511860295,6.61382129,3301.3,3301.2,0.226]
[1736511860882,9.64292129,3301.3,3301.2,0.226]
[1736511861797,6.1752,3301.3,3301.2,0.226]
[1736511862575,8.96512965,3301.3,3301.2,0.05328282]
[1736511862908,11.99422965,3301.3,3301.2,0.05328282]
[1736511863054,11.99422965,3301.3,3301.1,0.226]
[1736511863455,3.06707068,3301.2,3301.1,0.226]
[1736511863678,4.27029071,3301.2,3301.1,0.226]
[1736511865868,9.64029071,3301.2,3301.1,0.226]
[1736511866073,9.60242003,3301.2,3301.1,0.226]
[1736511866707,6.57322003,3301.2,3300.4,0.0075]
[1736511866907,3.02941,3301.0,3300.5,0.226]
[1736511867113,0.0378716,3300.9,3300.5,0.226]
[1736511868097,9.60247003,3301.2,3300.5,0.226]
[1736511868404,8.39925,3301.2,3300.6,0.05365826]
[1736511868605,5.37,3301.2,3300.6,0.05365826]
[1736511869103,5.37,3301.2,3300.7,1.3782]
[1736511869307,5.40786788,3301.2,3300.7,1.3782]
[1736511869510,5.40786788,3301.2,3300.7,1.43181355]
[1736511869860,5.4078679,3301.2,3300.7,1.43181355]
[1736511870994,5.4078679,3301.2,3300.7,0.61111355]
[1736511873017,5.37,3301.2,3300.7,0.61111355]
[1736511873828,0.03786791,3301.1,3300.7,0.61111355]
[1736511874426,5.37,3301.2,3300.7,0.61111355]
[1736511874935,5.37,3301.2,3300.8,0.0075]
[1736511875230,5.37,3301.2,3300.9,0.5575]
[1736511875721,0.03786477,3301.4,3301.1,0.5575]
[1736511876356,0.03786477,3301.4,3301.3,0.55]
[1736511876682,0.03786477,3301.4,3300.7,3.59465]
[1736511876888,0.03786477,3301.4,3300.9,0.565]
[1736511877101,0.03786477,3301.4,3300.9,0.55]
[1736511877528,3.02912,3301.3,3301.0,0.27954201]
[1736511877700,0.03786786,3301.2,3301.0,0.27954201]
[1736511878084,3.06709786,3301.2,3301.0,0.27954201]
[1736511878431,3.02923,3301.2,3301.0,0.27954201]
[1736511878929,3.02907,3301.4,3301.0,0.27954201]
[1736511879529,0.03786876,3301.3,3301.0,0.27954201]
[1736511880231,0.03786876,3301.3,3301.1,0.226]
[1736511880529,0.03786876,3301.3,3301.2,0.05345262]
[1736511880735,3.69011996,3301.4,3301.2,0.05345262]
[1736511880932,9.64722965,3301.3,3301.2,0.05345262]
[1736511881134,9.64722965,3301.3,3300.3,0.226]
[1736511881135,3.02968,3300.7,3300.3,0.226]
[1736511881286,3.89583645,3300.6,3300.4,0.226]
[1736511881488,2.78992965,3300.5,3299.8,0.59358056]
[1736511881705,3.85799,3300.6,3299.9,0.226]
[1736511882043,0.8282,3300.6,3300.0,0.0075]
[1736511882186,0.03787549,3300.5,3300.0,0.5575]
[1736511882390,0.03787549,3300.5,3300.1,0.05036169]
[1736511882606,0.03787549,3300.5,3299.9,0.226]
[1736511882994,3.02986,3300.5,3300.0,0.05040641]
[1736511883314,3.06773733,3300.5,3300.0,0.05040641]
[1736511883515,3.06773733,3300.5,3300.1,0.55]
[1736511883833,3.06773732,3300.5,3300.1,0.60051346]
[1736511884036,3.99433105,3300.5,3300.2,0.225]
[1736511884204,3.95645373,3300.5,3300.2,0.225]
[1736511884529,3.02986,3300.5,3300.3,0.05042402]
[1736511884688,8.39966,3300.7,3300.2,1.0517]
[1736511884889,8.39966,3300.7,3300.3,0.55]
[1736511885131,3.06769444,3300.6,3300.3,0.05046867]
[1736511885333,3.06769444,3300.6,3300.2,0.225]
[1736511885695,3.06769444,3300.6,3300.3,0.05046867]
[1736511885894,3.06769444,3300.6,3300.2,0.225]
[1736511886117,0.03787444,3300.6,3300.3,0.05046867]
[1736511886478,3.02993,3300.4,3300.2,0.225]
[1736511886676,3.8357972,3300.3,3300.2,0.225]
[1736511887045,3.8357972,3300.3,3299.7,0.761]
[1736511887256,3.8357972,3300.3,3298.8,2.79742965]
[1736511887257,2.78992965,3300.2,3299.8,0.225]
[1736511887490,3.0303,3300.0,3299.9,0.225]
[1736511888290,3.03039,3299.9,3299.3,0.5575]
[1736511888431,0.03788282,3299.8,3299.5,0.55]
[1736511888838,6.1391,3300.3,3299.7,0.55]
[1736511889131,5.37,3300.3,3299.9,0.55]
[1736511889591,5.37,3300.3,3300.0,0.04926486]
[1736511889736,5.37,3300.3,3300.1,1.3191]
[1736511889935,0.7514,3300.8,3300.2,0.015]
[1736511890172,0.7514,3300.8,3300.4,0.55]
[1736511890585,0.7514,3300.8,3300.5,0.04904127]
[1736511890751,5.37,3301.0,3300.5,0.04904127]
[1736511890950,5.37,3301.0,3300.6,0.55]
[1736511891151,5.37,3301.0,3300.8,0.55]
[1736511891588,5.37,3301.0,3300.9,0.04886244]
[1736511891753,5.37,3301.0,3300.8,0.55]
[1736511892154,5.37,3301.0,3300.9,0.59860825]
[1736511895889,0.758,3301.4,3301.0,0.55]
[1736511896235,0.79586604,3301.4,3301.1,0.04851885]
[1736511896552,0.79586604,3301.4,3301.2,0.225]
[1736511896882,0.79586604,3301.4,3301.2,0.27347416]
[1736511897380,0.79586604,3301.4,3301.2,0.225]
[1736511897619,0.79586604,3301.4,3301.3,0.04842947]
[1736511898023,0.79586604,3301.4,3301.2,0.225]
[1736511898230,0.758,3301.4,3301.2,0.225]
[1736511898579,0.758,3301.4,3301.3,0.04842947]
[1736511898781,0.758,3301.4,3301.2,0.225]
[1736511898979,0.758,3301.4,3301.3,0.04817977]
[1736511899218,0.758,3301.4,3301.2,0.225]
[1736511899428,9.21805,3301.6,3301.3,0.04817977]
[1736511899730,9.21805,3301.6,3301.2,0.225]
[1736511900020,9.21805,3301.6,3301.4,0.04813508]
[1736511900235,9.21805,3301.6,3301.3,0.04817977]
[1736511900438,6.1892,3301.6,3301.2,0.225]
[1736511900721,5.37,3301.6,3301.2,0.225]
[1736511900890,5.37,3301.6,3301.2,0.976]
[1736511901285,5.37,3301.6,3301.3,0.04817977]
[1736511901633,5.37,3301.6,3301.2,0.976]
[1736511901964,9.23109,3301.8,3301.3,0.04817977]
[1736511902126,9.85840563,3301.8,3301.2,0.976]
[1736511903881,5.37,3301.8,3301.3,0.59817977]
[1736511904079,0.8138,3302.2,3301.4,3.044]
[1736511904244,0.8138,3302.2,3301.7,0.55]
[1736511904627,0.03785877,3302.1,3301.8,0.04795635]
[1736511904877,0.03785877,3302.1,3301.7,0.55]
[1736511905262,0.03785877,3302.1,3301.8,0.04795635]
[1736511905567,0.8138,3302.2,3301.6,0.7501]
[1736511905738,0.8138,3302.2,3301.9,0.04791167]
[1736511906069,8.15992965,3302.3,3301.6,3.77892]
[1736511906462,8.15992965,3302.3,3301.7,0.04771573]
[1736511906666,0.03785624,3302.2,3301.7,0.04771573]
[1736511906869,5.37,3302.3,3301.7,0.04771573]
[1736511907188,5.37,3302.3,3301.8,0.015]
[1736511907337,5.37,3302.3,3301.9,3.85789]
[1736511907537,5.37,3302.3,3302.0,3.02845]
[1736511907734,6.1678,3302.8,3302.1,0.225]
[1736511907937,6.1678,3302.8,3302.1,0.27236768]
[1736511908549,5.37,3302.8,3302.1,0.27236768]
[1736511908840,5.37,3302.8,3302.1,3.30073768]
[1736511909836,2.78992965,3302.9,3302.3,3.02817]
[1736511910085,3.61622965,3303.2,3302.2,1.391]
[1736511910286,3.61622965,3303.2,3302.5,3.028]
[1736511910588,5.37,3303.3,3302.6,3.90035363]
[1736511910880,0.03784591,3303.2,3302.6,0.87245363]
[1736511912737,2.82777556,3303.2,3302.6,0.87245363]
[1736511915786,2.82777556,3303.2,3302.6,3.90034363]
[1736511915947,2.78992965,3303.2,3302.6,3.90034363]
[1736511916480,5.37,3303.3,3302.6,3.90034363]
[1736511916873,0.03784591,3303.2,3302.6,3.90034363]
[1736511918996,5.37,3303.3,3302.7,0.0075]
[1736511919289,5.37,3303.3,3302.7,3.03531]
[1736511919592,0.03784442,3303.4,3302.8,3.08146187]
[1736511920843,0.03784442,3303.4,3302.8,0.05376187]
[1736511922817,0.03784442,3303.4,3302.9,0.223]
[1736511923003,0.03784442,3303.4,3302.9,0.26921722]
[1736511923317,0.03784442,3303.4,3302.9,0.04621722]
[1736511923631,0.03784442,3303.4,3303.0,0.223]
[1736511924218,0.03784442,3303.4,3303.1,0.04579386]
[1736511924438,2.78992965,3303.5,3303.1,0.82079386]
[1736511924740,3.8238,3303.7,3303.1,0.82079386]
[1736511925744,0.03784212,3303.6,3303.1,0.82079386]
[1736511925897,2.78992965,3303.5,3303.0,0.223]
[1736511926098,0.03784212,3303.4,3303.1,0.04579386]
[1736511929139,5.37,3303.8,3303.2,0.7538]
[1736511929140,11.18681965,3303.8,3303.2,0.7538]
[1736511929438,0.03783867,3303.7,3303.2,0.79954922]
[1736511942582,5.81702965,3303.5,3302.9,0.7957]
[1736511942764,3.86952272,3303.4,3303.3,0.04549089]
[1736511943126,3.86952272,3303.4,3303.0,0.218]
[1736511943604,3.86952272,3303.4,3303.1,0.04558016]
[1736511944767,0.84234272,3303.4,3303.1,0.04558016]
[1736511945787,0.84234272,3303.4,3303.2,0.218]
[1736511946150,0.84234272,3303.4,3303.3,0.04559772]
[1736511946499,0.84234272,3303.4,3303.2,0.218]
[1736511946999,0.84234272,3303.4,3303.3,0.04559772]
[1736511947170,0.84234272,3303.4,3303.2,0.218]
[1736511947353,0.84234272,3303.4,3303.3,0.04559772]
[1736511947706,0.84234272,3303.4,3303.2,0.218]
[1736511948006,0.84234272,3303.4,3303.3,0.04559772]
[1736511948307,0.03784272,3303.4,3303.2,0.218]
[1736511948485,0.03784272,3303.4,3303.3,0.04559772]
[1736511948871,0.03784272,3303.4,3303.2,0.218]
[1736511949199,0.03784272,3303.4,3303.3,0.04559772]
[1736511949506,0.03784272,3303.4,3303.2,0.218]
[1736511949806,0.03784272,3303.4,3303.3,0.04559772]
[1736511950008,0.03784272,3303.4,3303.2,0.218]
[1736511950171,0.03784272,3303.4,3303.3,0.04559772]
[1736511950374,0.03784272,3303.4,3303.2,0.218]
[1736511950574,0.03784272,3303.4,3303.3,0.04559772]
[1736511950787,0.03784272,3303.4,3303.2,0.218]
[1736511951700,0.03784272,3303.4,3303.3,0.04559772]
[1736511952108,0.03784272,3303.4,3303.2,0.218]
[1736511952403,0.03784272,3303.4,3303.3,0.04559772]
[1736511952611,0.03784272,3303.4,3303.2,0.218]
[1736511952810,0.03784272,3303.4,3303.3,0.04559772]
[1736511953176,0.03784272,3303.4,3303.2,0.218]
[1736511953509,0.03784272,3303.4,3303.3,0.04559772]
[1736511953862,0.03784272,3303.4,3303.2,0.218]
[1736511954440,0.03784272,3303.4,3303.3,0.04559772]
[1736511954563,0.03784272,3303.4,3303.2,0.218]
[1736511954764,0.03784272,3303.4,3303.3,0.04559772]
[1736511955092,0.03784272,3303.4,3303.2,0.218]